[Event "European Online Club-ch-H 2021"]
[Site "Online"]
[Date "2021.03.27"]
[Round "1.13"]
[White "Nagy, Gabor"]
[Black "Sabuk, Piotr"]
[Result "0-1"]
[ECO "D27"]
[WhiteElo "2509"]
[BlackElo "2366"]
[Annotator "ChessBase"]
[PlyCount "144"]
[EventDate "2021.03.27"]
[EventType "team-tourn"]
[EventCountry "NET"]
[SourceTitle "playchess.com"]
[Source "ChessBase"]
[SourceQuality "1"]
[TimeControl "900+5"]

1. d4 {[%emt 0:00:00]} d5 {[%emt 0:00:12]} 2. c4 {[%emt 0:00:05]} e6 {[%emt 0:00:03]} 3. Nf3 {[%emt 0:00:03]} Nf6 {[%emt 0:00:06]} 4. Nc3 {[%emt 0:00:05]} dxc4 {[%emt 0:00:15]} 5. e3 {[%emt 0:00:12]} a6 {[%emt 0:00:06]} 6. Bxc4 {[%emt 0:00:06]} b5 {[%emt 0:00:03]} 7. Bb3 {[%emt 0:00:10]} Bb7 {[%emt 0:00:05]} 8. O-O {[%emt 0:00:04]} c5 {[%emt 0:00:23]} 9. e4 {[%emt 0:00:35]} cxd4 {[%emt 0:01:33]} 10. Nxd4 {[%emt 0:00:04]} Nbd7 {[%emt 0:00:05]} 11. Re1 {[%emt 0:02:06]} Nc5 {[%emt 0:00:40]} 12. Bc2 {[%emt 0:00:59]} Be7 {[%emt 0:00:52]} 13. e5 {[%emt 0:00:12]} Nd5 {[%emt 0:01:13]} 14. Qg4 {[%emt 0:00:59]} Nxc3 {[%emt 0:00:48]} 15. bxc3 {[%emt 0:00:24]} Qd5 {[%emt 0:00:23]} 16. a4 {[%emt 0:00:41]} h5 {[%emt 0:00:12]} 17. Qg3 {[%emt 0:00:38]} h4 {[%emt 0:00:16]} 18. Qh3 {[%emt 0:00:08]} b4 {[%emt 0:00:10]} 19. Rd1 {[%emt 0:01:49]} Qxe5 {[%emt 0:02:48]} 20. cxb4 {[%emt 0:00:06]} Ne4 {[%emt 0:00:14]} 21. Be3 {[%emt 0:00:09]} O-O {[%emt 0:00:39]} 22. Nf3 {[%emt 0:00:11]} Qb2 {[%emt 0:00:18]} 23. Bxe4 {[%emt 0:00:57]} Bxe4 {[%emt 0:00:03]} 24. Bd4 {[%emt 0:00:01]} Qxb4 {[%emt 0:00:15]} 25. Qg4 {[%emt 0:00:06]} Bg6 {[%emt 0:00:06]} 26. Ne5 {[%emt 0:01:23]} Bf5 {[%emt 0:00:13]} 27. Qf3 {[%emt 0:00:02]} Rac8 {[%emt 0:00:47]} 28. Nc6 {[%emt 0:00:12]} Qb7 {[%emt 0:00:24]} 29. Rac1 {[%emt 0:00:12]} Bg5 {[%emt 0:00:06]} 30. Rc5 {[%emt 0:00:10]} Rc7 {[%emt 0:00:15]} 31. Be3 {[%emt 0:01:01]} Bxe3 {[%emt 0:00:15]} 32. fxe3 {[%emt 0:00:02]} Qb6 {[%emt 0:00:10]} 33. Rdc1 {[%emt 0:00:04]} Rd7 {[%emt 0:00:18]} 34. Nd4 {[%emt 0:00:12]} Bg6 {[%emt 0:00:08]} 35. h3 {[%emt 0:00:07]} Rfd8 {[%emt 0:00:11]} 36. Qf4 {[%emt 0:00:07]} Rd5 {[%emt 0:00:18]} 37. Rxd5 {[%emt 0:00:28]} exd5 {[%emt 0:00:02]} 38. Qxh4 {[%emt 0:00:04]} Re8 {[%emt 0:00:02]} 39. Qf4 {[%emt 0:00:03]} Qb2 {[%emt 0:00:07]} 40. Rc6 {[%emt 0:00:11]} Qd2 {[%emt 0:00:07]} 41. Rxa6 {[%emt 0:00:08]} Qe1+ {[%emt 0:00:49]} 42. Kh2 {[%emt 0:00:04]} Qxe3 {[%emt 0:00:01]} 43. Qxe3 {[%emt 0:00:04]} Rxe3 {[%emt 0:00:01]} 44. a5 {[%emt 0:00:01]} Rd3 {[%emt 0:00:05]} 45. Nb5 {[%emt 0:00:08]} Rd2 {[%emt 0:00:06]} 46. Kg1 {[%emt 0:01:17]} d4 {[%emt 0:00:24]} 47. Rd6 {[%emt 0:00:04]} d3 {[%emt 0:00:03]} 48. a6 {[%emt 0:00:04]} Be4 {[%emt 0:00:03]} 49. g4 {[%emt 0:00:16]} Rc2 {[%emt 0:00:46]} 50. Kf1 {[%emt 0:00:26]} Rc5 {[%emt 0:00:39]} 51. Nd4 {[%emt 0:00:23]} Rc1+ {[%emt 0:00:09]} 52. Kf2 {[%emt 0:00:03]} d2 {[%emt 0:00:02]} 53. Rd8+ {[%emt 0:00:33]} Kh7 {[%emt 0:00:02]} 54. Ne6 {[%emt 0:00:04]} fxe6 {[%emt 0:00:21]} 55. Rxd2 {[%emt 0:00:03]} Ra1 {[%emt 0:00:06]} 56. Rd6 {[%emt 0:00:01]} Bd5 {[%emt 0:00:02]} 57. Kg3 {[%emt 0:00:03]} g5 {[%emt 0:00:06]} 58. Rd7+ {[%emt 0:00:07]} Kg6 {[%emt 0:00:02]} 59. a7 {[%emt 0:00:01]} Kf6 {[%emt 0:00:02]} 60. Kf2 {[%emt 0:00:03]} Ra3 {[%emt 0:00:06]} 61. Ke2 {[%emt 0:00:03]} Ke5 {[%emt 0:00:01]} 62. Kd2 {[%emt 0:00:02]} Kd4 {[%emt 0:00:05]} 63. h4 {[%emt 0:00:05]} Ra2+ {[%emt 0:00:08]} 64. Kc1 {[%emt 0:00:03]} gxh4 {[%emt 0:00:01]} 65. g5 {[%emt 0:00:02]} h3 {[%emt 0:00:01]} 66. g6 {[%emt 0:00:01]} h2 {[%emt 0:00:05]} 67. Rh7 {[%emt 0:00:02]} Ra1+ {[%emt 0:00:19]} 68. Kb2 {[%emt 0:00:02]} h1=Q {[%emt 0:00:05]} 69. Rxh1 {[%emt 0:00:01]} Rxh1 {[%emt 0:00:02]} 70. g7 {[%emt 0:00:01]} Rg1 {[%emt 0:00:02]} 71. a8=Q {[%emt 0:00:02]} Bxa8 {[%emt 0:00:05]} 72. g8=Q {[%emt 0:00:02]} Rxg8 {[%emt 0:00:04]} 0-1

[Event "European Online Club-ch-H 2021"]
[Site "Online"]
[Date "2021.03.27"]
[Round "1.14"]
[White "Valuet, Bertrand"]
[Black "Mihok, Oliver"]
[Result "0-1"]
[ECO "B47"]
[WhiteElo "2217"]
[BlackElo "2540"]
[Annotator "ChessBase"]
[PlyCount "78"]
[EventDate "2021.03.27"]
[EventType "team-tourn"]
[EventCountry "NET"]
[SourceTitle "playchess.com"]
[Source "ChessBase"]
[SourceQuality "1"]
[TimeControl "900+5"]

1. e4 {[%emt 0:00:00]} c5 {[%emt 0:00:08]} 2. Nf3 {[%emt 0:00:04]} e6 {[%emt 0:00:10]} 3. d4 {[%emt 0:00:03]} cxd4 {[%emt 0:00:07]} 4. Nxd4 {[%emt 0:00:02]} Nc6 {[%emt 0:00:02]} 5. Nc3 {[%emt 0:00:06]} Qc7 {[%emt 0:00:01]} 6. g3 {[%emt 0:00:04]} a6 {[%emt 0:00:05]} 7. Bg2 {[%emt 0:00:03]} Nf6 {[%emt 0:00:04]} 8. O-O {[%emt 0:00:05]} Nxd4 {[%emt 0:00:01]} 9. Qxd4 {[%emt 0:00:03]} Bc5 {[%emt 0:00:02]} 10. Bf4 {[%emt 0:00:03]} d6 {[%emt 0:00:14]} 11. Qd3 {[%emt 0:00:50]} Ng4 {[%emt 0:00:20]} 12. Qe2 {[%emt 0:00:37]} Ne5 {[%emt 0:00:44]} 13. Na4 {[%emt 0:00:44]} Ba7 {[%emt 0:00:14]} 14. Be3 {[%emt 0:00:03]} b5 {[%emt 0:00:20]} 15. Bxa7 {[%emt 0:00:11]} Qxa7 {[%emt 0:00:15]} 16. Nc3 {[%emt 0:00:04]} Bb7 {[%emt 0:00:03]} 17. Rad1 {[%emt 0:00:09]} Qc5 {[%emt 0:00:29]} 18. Qd2 {[%emt 0:00:36]} Nc4 {[%emt 0:01:04]} 19. Qd4 {[%emt 0:00:05]} Qxd4 {[%emt 0:00:57]} 20. Rxd4 {[%emt 0:00:05]} Nxb2 {[%emt 0:00:45]} 21. Rxd6 {[%emt 0:00:35]} Nc4 {[%emt 0:00:15]} 22. Rd4 {[%emt 0:00:32]} Rc8 {[%emt 0:00:16]} 23. Rb1 {[%emt 0:02:49]} Ke7 {[%emt 0:03:45]} 24. a4 {[%emt 0:02:40]} Ne5 {[%emt 0:00:05]} 25. Nd1 {[%emt 0:01:29]} Nc6 {[%emt 0:00:55]} 26. Rd3 {[%emt 0:00:44]} b4 {[%emt 0:00:05]} 27. Ne3 {[%emt 0:00:11]} a5 {[%emt 0:00:17]} 28. e5 {[%emt 0:00:45]} Rc7 {[%emt 0:00:22]} 29. Nc4 {[%emt 0:00:56]} Ba6 {[%emt 0:00:23]} 30. Bxc6 {[%emt 0:00:09]} Bxc4 {[%emt 0:00:27]} 31. Rd6 {[%emt 0:00:02]} Rhc8 {[%emt 0:00:12]} 32. Be4 {[%emt 0:00:15]} f5 {[%emt 0:00:44]} 33. Bf3 {[%emt 0:00:25]} Rc5 {[%emt 0:00:11]} 34. Rbd1 {[%emt 0:00:17]} R8c7 {[%emt 0:00:13]} 35. R1d4 {[%emt 0:00:23]} Rxe5 {[%emt 0:00:15]} 36. Bc6 {[%emt 0:00:03]} Bd5 {[%emt 0:00:34]} 37. R6xd5 {[%emt 0:00:10]} exd5 {[%emt 0:00:06]} 38. f4 {[%emt 0:00:05]} Re4 {[%emt 0:00:14]} 39. Rxe4+ {[%emt 0:00:06]} dxe4 {[%emt 0:00:02]} 0-1

[Event "European Online Club-ch-H 2021"]
[Site "Online"]
[Date "2021.03.27"]
[Round "1.15"]
[White "Glek, Igor"]
[Black "Appendino, Jerome"]
[Result "1-0"]
[ECO "B51"]
[WhiteElo "2475"]
[BlackElo "2175"]
[Annotator "ChessBase"]
[PlyCount "95"]
[EventDate "2021.03.27"]
[EventType "team-tourn"]
[EventCountry "NET"]
[SourceTitle "playchess.com"]
[Source "ChessBase"]
[SourceQuality "1"]
[TimeControl "900+5"]

1. e4 {[%emt 0:00:00]} c5 {[%emt 0:00:05]} 2. Nf3 {[%emt 0:00:03]} d6 {[%emt 0:00:05]} 3. Bb5+ {[%emt 0:00:03]} Nd7 {[%emt 0:00:04]} 4. d4 {[%emt 0:00:02]} cxd4 {[%emt 0:00:03]} 5. Qxd4 {[%emt 0:00:02]} a6 {[%emt 0:00:46]} 6. Bxd7+ {[%emt 0:00:03]} Bxd7 {[%emt 0:00:48]} 7. Bg5 {[%emt 0:00:04]} Qa5+ {[%emt 0:01:33]} 8. Nc3 {[%emt 0:00:22]} e5 {[%emt 0:00:43]} 9. Qd3 {[%emt 0:00:13]} h6 {[%emt 0:01:30]} 10. Bh4 {[%emt 0:00:34]} g5 {[%emt 0:00:27]} 11. Bg3 {[%emt 0:00:03]} Nf6 {[%emt 0:00:14]} 12. O-O {[%emt 0:00:12]} Be7 {[%emt 0:00:39]} 13. Rfd1 {[%emt 0:00:50]} Bc6 {[%emt 0:01:49]} 14. Nd2 {[%emt 0:00:10]} Rd8 {[%emt 0:01:09]} 15. Nc4 {[%emt 0:00:08]} Qc7 {[%emt 0:00:06]} 16. Ne3 {[%emt 0:00:47]} b5 {[%emt 0:00:32]} 17. f3 {[%emt 0:00:28]} b4 {[%emt 0:00:16]} 18. Ncd5 {[%emt 0:00:03]} Nxd5 {[%emt 0:00:59]} 19. Nxd5 {[%emt 0:00:08]} Bxd5 {[%emt 0:00:07]} 20. Qxd5 {[%emt 0:00:14]} O-O {[%emt 0:00:30]} 21. Rac1 {[%emt 0:00:07]} Rc8 {[%emt 0:00:24]} 22. Bf2 {[%emt 0:00:15]} Qc4 {[%emt 0:00:21]} 23. b3 {[%emt 0:00:52]} Qxd5 {[%emt 0:00:08]} 24. Rxd5 {[%emt 0:00:02]} Rc6 {[%emt 0:00:06]} 25. Be1 {[%emt 0:00:40]} Rfc8 {[%emt 0:00:07]} 26. Bxb4 {[%emt 0:00:13]} Rxc2 {[%emt 0:00:04]} 27. Rxc2 {[%emt 0:00:05]} Rxc2 {[%emt 0:00:01]} 28. Rd2 {[%emt 0:00:26]} Rxd2 {[%emt 0:00:12]} 29. Bxd2 {[%emt 0:00:03]} h5 {[%emt 0:00:11]} 30. g4 {[%emt 0:00:34]} hxg4 {[%emt 0:00:08]} 31. fxg4 {[%emt 0:00:02]} f6 {[%emt 0:00:11]} 32. Kf1 {[%emt 0:00:06]} Kf7 {[%emt 0:00:02]} 33. Ke2 {[%emt 0:00:01]} Ke6 {[%emt 0:00:01]} 34. Kd3 {[%emt 0:00:03]} d5 {[%emt 0:00:01]} 35. b4 {[%emt 0:00:05]} dxe4+ {[%emt 0:00:41]} 36. Kxe4 {[%emt 0:00:03]} Bd6 {[%emt 0:00:08]} 37. a4 {[%emt 0:00:04]} Be7 {[%emt 0:00:13]} 38. b5 {[%emt 0:00:13]} axb5 {[%emt 0:00:05]} 39. axb5 {[%emt 0:00:02]} Bc5 {[%emt 0:00:02]} 40. Ba5 {[%emt 0:00:34]} Bd6 {[%emt 0:00:23]} 41. Bb6 {[%emt 0:00:22]} Bb8 {[%emt 0:00:02]} 42. Bd8 {[%emt 0:00:08]} Bd6 {[%emt 0:00:08]} 43. b6 {[%emt 0:02:28]} Bb8 {[%emt 0:00:14]} 44. b7 {[%emt 0:00:14]} Bd6 {[%emt 0:00:21]} 45. Bb6 {[%emt 0:00:02]} Bb8 {[%emt 0:00:02]} 46. h3 {[%emt 0:00:23]} Ke7 {[%emt 0:01:01]} 47. Kf5 {[%emt 0:00:23]} Kf7 {[%emt 0:00:42]} 48. Bd8 {[%emt 0:00:08]} 1-0

[Event "European Online Club-ch-H 2021"]
[Site "Online"]
[Date "2021.03.27"]
[Round "1.16"]
[White "Ould Ahmed, Samy"]
[Black "Meessen, Rudolf"]
[Result "1/2-1/2"]
[ECO "C11"]
[WhiteElo "2110"]
[BlackElo "2223"]
[Annotator "NA"]
[PlyCount "102"]
[EventDate "2021.03.27"]
[EventType "team-tourn"]
[EventCountry "NET"]
[SourceTitle "playchess.com"]
[Source "ChessBase"]
[SourceQuality "1"]
[TimeControl "900+5"]

1. e4 {[%emt 0:00:00]} e6 {[%emt 0:00:05]} 2. d4 {[%emt 0:00:48]} d5 {[%emt 0:00:01]} 3. Nc3 {[%emt 0:00:08]} Nf6 {[%emt 0:00:03]} 4. e5 {[%emt 0:00:45]} Nfd7 {[%emt 0:00:03]} 5. f4 {[%emt 0:00:01]} c5 {[%emt 0:00:01]} 6. Nf3 {[%emt 0:00:02]} Nc6 {[%emt 0:00:01]} 7. Be3 {[%emt 0:00:00]} cxd4 {[%emt 0:00:01]} 8. Nxd4 {[%emt 0:00:02]} Bc5 {[%emt 0:00:01]} 9. Qd2 {[%emt 0:00:04]} O-O {[%emt 0:00:01]} 10. O-O-O {[%emt 0:00:43]} Bxd4 {[%emt 0:00:06]} 11. Bxd4 {[%emt 0:00:02]} Qa5 {[%emt 0:00:02]} 12. Kb1 {[%emt 0:00:40]} Rb8 {[%emt 0:00:52]} 13. Nb5 {[%emt 0:03:38]} Qxd2 {[%emt 0:00:29]} 14. Rxd2 {[%emt 0:00:24]} a6 {[%emt 0:00:02]} 15. Nd6 {[%emt 0:00:37]} Nxd4 {[%emt 0:00:03]} 16. Rxd4 {[%emt 0:00:02]} f6 {[%emt 0:00:01]} 17. exf6 {[%emt 0:01:04]} Nxf6 {[%emt 0:00:00]} 18. Nxc8 {[%emt 0:00:45]} Rbxc8 {[%emt 0:00:09]} 19. g3 {[%emt 0:00:19]} Ne4 {[%emt 0:00:49]} 20. Bh3 {[%emt 0:00:10]} Rc6 {[%emt 0:00:22]} 21. Re1 {[%emt 0:00:15]} Re8 {[%emt 0:02:00]} 22. f5 {[%emt 0:02:00]} exf5 {[%emt 0:00:11]} 23. Rf1 {[%emt 0:00:51]} g6 {[%emt 0:00:51]} 24. Rxd5 {[%emt 0:00:25]} Rce6 {[%emt 0:00:58]} 25. c3 {[%emt 0:00:44]} Ng5 {[%emt 0:00:14]} 26. Bg4 {[%emt 0:01:02]} Re5 {[%emt 0:01:53]} 27. Rxe5 {[%emt 0:00:12]} Rxe5 {[%emt 0:00:02]} 28. Bd1 {[%emt 0:00:08]} Ne4 {[%emt 0:00:05]} 29. Bb3+ {[%emt 0:00:41]} Kg7 {[%emt 0:00:09]} 30. Kc1 {[%emt 0:00:01]} Nc5 {[%emt 0:00:07]} 31. Bc2 {[%emt 0:00:25]} Re2 {[%emt 0:00:06]} 32. Rd1 {[%emt 0:00:20]} Rxh2 {[%emt 0:01:23]} 33. b4 {[%emt 0:00:18]} Ne4 {[%emt 0:00:12]} 34. Bxe4 {[%emt 0:00:02]} fxe4 {[%emt 0:00:02]} 35. Rd7+ {[%emt 0:00:00]} Kf6 {[%emt 0:00:03]} 36. Rxb7 {[%emt 0:00:02]} Rxa2 {[%emt 0:00:26]} 37. Rxh7 {[%emt 0:00:05]} e3 {[%emt 0:00:03]} 38. Kd1 {[%emt 0:00:01]} Kf5 {[%emt 0:00:07]} 39. Re7 {[%emt 0:00:09]} Rd2+ {[%emt 0:01:00]} 40. Ke1 {[%emt 0:00:03]} Rd3 {[%emt 0:00:02]} 41. Ke2 {[%emt 0:00:05]} Rxc3 {[%emt 0:00:02]} 42. Rxe3 {[%emt 0:00:03]} Rc4 {[%emt 0:00:35]} 43. Rb3 {[%emt 0:00:09]} Ke4 {[%emt 0:00:03]} 44. b5 {[%emt 0:00:09]} axb5 {[%emt 0:00:02]} 45. Rxb5 {[%emt 0:00:00]} Rc2+ {[%emt 0:00:01]} 46. Kd1 {[%emt 0:00:11]} Rf2 {[%emt 0:01:10]} 47. Rg5 {[%emt 0:00:10]} Rf6 {[%emt 0:00:09]} 48. Ke2 {[%emt 0:00:03]} Rb6 {[%emt 0:00:05]} 49. Kf2 {[%emt 0:00:09]} Rf6+ {[%emt 0:00:33]} 50. Kg2 {[%emt 0:00:03]} Rb6 {[%emt 0:00:07]} 51. Kf2 {[%emt 0:00:05]} Rb2+ {[%emt 0:00:06]} 1/2-1/2

[Event "European Online Club-ch-H 2021"]
[Site "Online"]
[Date "2021.03.27"]
[Round "1.17"]
[White "Parvanyan, Ashot"]
[Black "Vasli, Aref"]
[Result "1-0"]
[ECO "E90"]
[WhiteElo "2436"]
[BlackElo "2384"]
[Annotator "NA"]
[PlyCount "57"]
[EventDate "2021.03.27"]
[EventType "team-tourn"]
[EventCountry "NET"]
[SourceTitle "playchess.com"]
[Source "ChessBase"]
[SourceQuality "1"]
[TimeControl "900+5"]

1. Nf3 {[%emt 0:00:00]} Nf6 {[%emt 0:00:03]} 2. c4 {[%emt 0:00:03]} g6 {[%emt 0:00:03]} 3. Nc3 {[%emt 0:00:27]} Bg7 {[%emt 0:00:03]} 4. e4 {[%emt 0:00:03]} d6 {[%emt 0:00:06]} 5. d4 {[%emt 0:00:08]} O-O {[%emt 0:00:01]} 6. h3 {[%emt 0:00:18]} c5 {[%emt 0:00:19]} 7. d5 {[%emt 0:00:02]} e6 {[%emt 0:00:09]} 8. Bd3 {[%emt 0:00:05]} exd5 {[%emt 0:00:03]} 9. exd5 {[%emt 0:00:00]} Re8+ {[%emt 0:00:08]} 10. Be3 {[%emt 0:00:07]} Rxe3+ {[%emt 0:00:21]} 11. fxe3 {[%emt 0:00:03]} Qe7 {[%emt 0:00:01]} 12. O-O {[%emt 0:02:14]} Nbd7 {[%emt 0:00:39]} 13. Qd2 {[%emt 0:00:38]} Ne5 {[%emt 0:00:30]} 14. Nxe5 {[%emt 0:00:57]} Qxe5 {[%emt 0:00:03]} 15. Rf3 {[%emt 0:01:51]} Nd7 {[%emt 0:02:28]} 16. Raf1 {[%emt 0:01:40]} Bh6 {[%emt 0:01:58]} 17. Qf2 {[%emt 0:03:14]} a6 {[%emt 0:00:22]} 18. Qh4 {[%emt 0:01:43]} Bg5 {[%emt 0:02:45]} 19. Qe1 {[%emt 0:01:06]} f5 {[%emt 0:00:33]} 20. Bxf5 {[%emt 0:01:42]} gxf5 {[%emt 0:00:24]} 21. Rg3 {[%emt 0:00:08]} h6 {[%emt 0:01:21]} 22. h4 {[%emt 0:00:01]} Nf6 {[%emt 0:00:01]} 23. hxg5 {[%emt 0:00:03]} Ng4 {[%emt 0:00:01]} 24. gxh6 {[%emt 0:00:11]} Bd7 {[%emt 0:00:25]} 25. Ne2 {[%emt 0:00:08]} Kh7 {[%emt 0:00:13]} 26. Rxg4 {[%emt 0:00:06]} fxg4 {[%emt 0:00:45]} 27. Rf7+ {[%emt 0:00:02]} Kh8 {[%emt 0:00:01]} 28. Rxd7 {[%emt 0:00:02]} Rf8 {[%emt 0:00:07]} 29. Qc3 {[%emt 0:00:07]} 1-0

[Event "European Online Club-ch-H 2021"]
[Site "Online"]
[Date "2021.03.27"]
[Round "1.18"]
[White "Carstensen, Jacob"]
[Black "Olsen, Filip Boe"]
[Result "0-1"]
[ECO "E32"]
[WhiteElo "2361"]
[BlackElo "2379"]
[Annotator "NA"]
[PlyCount "120"]
[EventDate "2021.03.27"]
[EventType "team-tourn"]
[EventCountry "NET"]
[SourceTitle "playchess.com"]
[Source "ChessBase"]
[SourceQuality "1"]
[TimeControl "900+5"]

1. d4 {[%emt 0:00:00]} Nf6 {[%emt 0:00:10]} 2. c4 {[%emt 0:00:02]} e6 {[%emt 0:00:04]} 3. Nc3 {[%emt 0:00:01]} Bb4 {[%emt 0:00:01]} 4. Qc2 {[%emt 0:00:02]} O-O {[%emt 0:00:03]} 5. e4 {[%emt 0:00:02]} d5 {[%emt 0:00:02]} 6. e5 {[%emt 0:00:01]} Ne4 {[%emt 0:00:02]} 7. Bd3 {[%emt 0:00:02]} c5 {[%emt 0:00:01]} 8. Nf3 {[%emt 0:00:01]} cxd4 {[%emt 0:00:02]} 9. Nxd4 {[%emt 0:00:03]} Nd7 {[%emt 0:00:02]} 10. Bxe4 {[%emt 0:00:03]} dxe4 {[%emt 0:00:04]} 11. Qxe4 {[%emt 0:00:00]} Qa5 {[%emt 0:00:02]} 12. O-O {[%emt 0:00:03]} Qxe5 {[%emt 0:00:13]} 13. Qh4 {[%emt 0:00:03]} h6 {[%emt 0:02:34]} 14. Ndb5 {[%emt 0:00:16]} Qf6 {[%emt 0:00:42]} 15. Qg3 {[%emt 0:00:19]} a6 {[%emt 0:00:59]} 16. Ne4 {[%emt 0:00:42]} Qe5 {[%emt 0:00:42]} 17. Nbc3 {[%emt 0:01:11]} Qxg3 {[%emt 0:00:15]} 18. hxg3 {[%emt 0:00:00]} Ne5 {[%emt 0:00:27]} 19. b3 {[%emt 0:00:26]} f5 {[%emt 0:01:12]} 20. a3 {[%emt 0:00:15]} Ba5 {[%emt 0:00:38]} 21. Bf4 {[%emt 0:00:31]} Nd3 {[%emt 0:03:47]} 22. b4 {[%emt 0:00:13]} Nxf4 {[%emt 0:00:18]} 23. bxa5 {[%emt 0:00:17]} fxe4 {[%emt 0:00:03]} 24. gxf4 {[%emt 0:00:04]} Rxf4 {[%emt 0:00:01]} 25. Rad1 {[%emt 0:00:14]} e5 {[%emt 0:00:44]} 26. Rd8+ {[%emt 0:00:50]} Rf8 {[%emt 0:00:15]} 27. Rxf8+ {[%emt 0:00:15]} Kxf8 {[%emt 0:00:02]} 28. Nxe4 {[%emt 0:00:02]} Be6 {[%emt 0:00:26]} 29. Nd6 {[%emt 0:00:16]} Ke7 {[%emt 0:00:17]} 30. c5 {[%emt 0:00:03]} Bd5 {[%emt 0:00:53]} 31. f4 {[%emt 0:01:03]} exf4 {[%emt 0:01:12]} 32. Rxf4 {[%emt 0:00:00]} Kd7 {[%emt 0:00:10]} 33. Rf5 {[%emt 0:00:38]} Kc6 {[%emt 0:00:25]} 34. g4 {[%emt 0:01:23]} Rb8 {[%emt 0:00:06]} 35. g5 {[%emt 0:00:06]} Kxc5 {[%emt 0:00:04]} 36. Ne4+ {[%emt 0:00:10]} Kd4 {[%emt 0:00:06]} 37. Nd6 {[%emt 0:00:07]} Rd8 {[%emt 0:00:14]} 38. Nf7 {[%emt 0:00:08]} Bxf7 {[%emt 0:00:28]} 39. Rxf7 {[%emt 0:00:00]} hxg5 {[%emt 0:00:07]} 40. Rxb7 {[%emt 0:00:09]} Rd5 {[%emt 0:00:02]} 41. Rb4+ {[%emt 0:00:04]} Kc3 {[%emt 0:00:02]} 42. Rg4 {[%emt 0:00:31]} Rxa5 {[%emt 0:00:03]} 43. a4 {[%emt 0:00:02]} Kb3 {[%emt 0:00:06]} 44. Kf2 {[%emt 0:00:01]} Rxa4 {[%emt 0:00:09]} 45. Rxg5 {[%emt 0:00:02]} Re4 {[%emt 0:00:02]} 46. Rxg7 {[%emt 0:00:07]} a5 {[%emt 0:00:02]} 47. Rb7+ {[%emt 0:00:09]} Ka3 {[%emt 0:00:02]} 48. Kf3 {[%emt 0:00:05]} Re8 {[%emt 0:00:02]} 49. Rb6 {[%emt 0:00:05]} a4 {[%emt 0:00:02]} 50. Rb7 {[%emt 0:00:02]} Ka2 {[%emt 0:00:01]} 51. Rb6 {[%emt 0:00:02]} a3 {[%emt 0:00:01]} 52. Kf2 {[%emt 0:00:02]} Ka1 {[%emt 0:00:02]} 53. Rb7 {[%emt 0:00:01]} a2 {[%emt 0:00:16]} 54. Rb6 {[%emt 0:00:03]} Re4 {[%emt 0:00:03]} 55. Rb7 {[%emt 0:00:07]} Rc4 {[%emt 0:00:04]} 56. Ke2 {[%emt 0:00:04]} Rc1 {[%emt 0:00:19]} 57. Kd2 {[%emt 0:00:03]} Rb1 {[%emt 0:00:02]} 58. Ra7 {[%emt 0:00:34]} Kb2 {[%emt 0:00:03]} 59. Rb7+ {[%emt 0:00:09]} Ka3 {[%emt 0:00:05]} 60. Ra7+ {[%emt 0:00:05]} Kb3 {[%emt 0:00:01]} 0-1

[Event "European Online Club-ch-H 2021"]
[Site "Online"]
[Date "2021.03.27"]
[Round "1.19"]
[White "Pajeken, Jakob Leon"]
[Black "Laursen, Niels Norskov"]
[Result "1-0"]
[ECO "E60"]
[WhiteElo "2323"]
[BlackElo "2228"]
[Annotator "NA"]
[PlyCount "75"]
[EventDate "2021.03.27"]
[EventType "team-tourn"]
[EventCountry "NET"]
[SourceTitle "playchess.com"]
[Source "ChessBase"]
[SourceQuality "1"]
[TimeControl "900+5"]

1. d4 {[%emt 0:00:00]} Nf6 {[%emt 0:00:03]} 2. Nf3 {[%emt 0:00:04]} g6 {[%emt 0:00:03]} 3. g3 {[%emt 0:00:01]} Bg7 {[%emt 0:00:04]} 4. Bg2 {[%emt 0:00:02]} O-O {[%emt 0:00:02]} 5. O-O {[%emt 0:00:01]} d6 {[%emt 0:00:12]} 6. b3 {[%emt 0:00:03]} c5 {[%emt 0:00:27]} 7. c4 {[%emt 0:00:03]} Nc6 {[%emt 0:00:25]} 8. Bb2 {[%emt 0:00:02]} cxd4 {[%emt 0:00:43]} 9. Nxd4 {[%emt 0:00:04]} Bd7 {[%emt 0:00:02]} 10. Nc3 {[%emt 0:00:03]} Rc8 {[%emt 0:00:34]} 11. Nc2 {[%emt 0:00:05]} a6 {[%emt 0:00:12]} 12. Qd2 {[%emt 0:01:03]} Re8 {[%emt 0:01:28]} 13. Rfd1 {[%emt 0:02:10]} Qa5 {[%emt 0:00:36]} 14. Ne3 {[%emt 0:00:53]} Qh5 {[%emt 0:01:38]} 15. Ned5 {[%emt 0:00:45]} Nxd5 {[%emt 0:02:01]} 16. Nxd5 {[%emt 0:00:04]} Bxb2 {[%emt 0:00:43]} 17. Qxb2 {[%emt 0:00:04]} Rb8 {[%emt 0:00:28]} 18. Nf4 {[%emt 0:00:19]} Qa5 {[%emt 0:00:25]} 19. Rac1 {[%emt 0:00:32]} Rbd8 {[%emt 0:01:29]} 20. h4 {[%emt 0:00:22]} Qe5 {[%emt 0:00:33]} 21. Qd2 {[%emt 0:01:04]} Bf5 {[%emt 0:00:12]} 22. e3 {[%emt 0:01:33]} h5 {[%emt 0:00:08]} 23. Qe1 {[%emt 0:00:12]} Be4 {[%emt 0:00:13]} 24. f3 {[%emt 0:00:17]} Bf5 {[%emt 0:00:03]} 25. Nd5 {[%emt 0:00:22]} Bc8 {[%emt 0:00:19]} 26. Rd2 {[%emt 0:00:12]} Kg7 {[%emt 0:00:09]} 27. f4 {[%emt 0:00:19]} Qf5 {[%emt 0:00:13]} 28. e4 {[%emt 0:00:02]} Qd7 {[%emt 0:00:02]} 29. Rcd1 {[%emt 0:00:04]} b5 {[%emt 0:01:00]} 30. Kh2 {[%emt 0:00:46]} Qa7 {[%emt 0:00:04]} 31. cxb5 {[%emt 0:00:08]} axb5 {[%emt 0:00:02]} 32. Rc2 {[%emt 0:00:04]} Bd7 {[%emt 0:00:20]} 33. Rxc6 {[%emt 0:00:41]} Bxc6 {[%emt 0:00:04]} 34. Qc3+ {[%emt 0:00:05]} f6 {[%emt 0:00:17]} 35. Qxc6 {[%emt 0:00:10]} Rc8 {[%emt 0:00:07]} 36. Qxb5 {[%emt 0:00:11]} Qxa2 {[%emt 0:00:44]} 37. Nc7 {[%emt 0:00:17]} Rb8 {[%emt 0:00:14]} 38. Nxe8+ {[%emt 0:00:12]} 1-0